Cogmind - Beta 15 @@@ ROGUE MODE // 2025.06.11 @ 05:14:31 Player: Mas5akr Result: Destroyed by PK-0ZS(R) with Subdweller Beam Cannon Performance ------------- Evolutions (0) 0 Regions Visited (2) 400 Robots Destroyed (30) 150 Value Destroyed (844) 844 Prototype IDs (0) 0 Alien Tech Used (0) 0 Bonus (0) 0 TOTAL SCORE: 1394 Bonus ------- None Cogmind --------- Core Integrity 0/250 Matter 288/300 Energy 160/160 System Corruption 1% Temperature Cool (9) Movement Treading (240) Ox1 Location -10/Subcaves Parts ------- > --- POWER (1) -------- Light Nuclear Core > --- PROPULSION (2) --- Light Treads > --- UTILITY (2) ------ Large Storage Unit Targeting Computer > --- WEAPON (2) ------- Heavy Assault Rifle > --- INVENTORY (15) --- Improved Heat Sink Medium Storage Unit Large Matter Pod (45) Subdweller Optics Seismic Detector Tractor Beam Heavy Assault Rifle Battle Rifle Improved Light Cannon Welding Torch Makeshift Sword Peak State ------------ > --- POWER ------------ Ion Engine > --- PROPULSION ------- Light Treads Spiked Treads > --- UTILITY ---------- Large Storage Unit Subdweller Optics > --- WEAPON ----------- Barrage Gun Makeshift Sword > --- INVENTORY -------- Light Nuclear Core Light Treads Improved Heat Sink Medium Storage Unit Large Matter Pod Subdweller Optics Seismic Detector Targeting Computer Tractor Beam Heavy Assault Rifle Heavy Assault Rifle Heavy Assault Rifle Battle Rifle Improved Light Cannon Welding Torch [Rating: 16] Favorites ----------- Power Ion Engine Engine Ion Engine Power Core Light Nuclear Core Propulsion Light Treads Treads Light Treads Utility Large Storage Unit Device Subdweller Optics Storage Large Storage Unit Processor Targeting Computer Protection Core Shielding Weapon Heavy Assault Rifle Energy Gun Medium Laser Ballistic Gun Heavy Assault Rifle Ballistic Cannon Improved Light Cannon Slashing Weapon Makeshift Sword Build | -11 -10 -10 ------- Run | Yrd Mat Sub Slots Evolved . | . . . Power . | . . . Propulsion . | . . . Utility . | . . . Weapon . | . . . Parts Attached 27 | 6 9 12 Power 5 | 1 3 1 Engine 4 | 1 3 . Core 1 | . . 1 Reactor . | . . . Propulsion 6 | 2 1 3 Treads 6 | 2 1 3 Leg . | . . . Wheel . | . . . Hover . | . . . Flight . | . . . Utility 5 | 1 2 2 Device 1 | . . 1 Storage 2 | 1 1 . Processor 1 | . . 1 Hackware . | . . . Protection 1 | . 1 . Artifact . | . . . Weapon 11 | 2 3 6 Energy Gun 1 | 1 . . Energy Cannon . | . . . Ballistic Gun 8 | 1 3 4 Ballistic Cannon 1 | . . 1 Launcher . | . . . Special Weapon . | . . . Impact Weapon . | . . . Slashing Weapon 1 | . . 1 Piercing Weapon . | . . . Special Melee Weapon . | . . . Unidentified Prototypes . | . . . Parts Lost 7 | . . 7 Power 2 | . . 2 Propulsion 2 | . . 2 Utility 1 | . . 1 Weapon 2 | . . 2 Highest Loss Streak 3 | . . 3 To Critical Strikes . | . . . Average Backups 13 | 2 12 13 Power 1 | . 1 1 Propulsion . | . . 1 Utility 5 | . 4 6 Weapon 4 | 1 4 4 Tool/Special . | . . . Unused Backups 13 | . 5 8 Power 1 | . 1 . Propulsion . | . . . Utility 8 | . 1 7 Weapon 3 | . 3 . Tool/Special 1 | . . 1 Average Slot Usage (%) 97 | . 98 96 Engine 12 | . 14 11 Core 1 | . . 2 Treads 26 | . 28 25 Device 2 | . . 3 Storage 14 | . 14 14 Processor 1 | . . 2 Protection 9 | . 12 7 Ballistic Gun 26 | . 27 25 Slashing Weapon 1 | . . 1 Peak Build Rating 16 | 6 11 16 Average Rating 11 | 3 9 12 On Entrance 5 | . 6 11 Naked Turns . | . . . Heaviest Build 33 | 14 32 33 Greatest Support 40 | 40 40 40 Greatest Overweight (x) 8 | 1 . 8 Average Overweight (x) . | . . . Largest Inventory Capacity 15 | 8 15 15 Average Capacity 14 | 6 14 15 Most Carried 15 | 5 15 15 Average Carried 13 | 2 12 14 Final Capacity 15 | 8 15 15 Final Carried 15 | 2 15 11 Class Distribution -------------------- 100% | Mutant Dominant Class ---------------- Mutant | -10/Materials Mutant | -10/Subcaves Resources | -11 -10 -10 ----------- Run | Yrd Mat Sub Matter Collected 1520 | 225 592 703 Remotely . | . . . Salvage Created 1194 | . 746 448 Parts 60 | . 38 22 Haulers Intercepted 1 | . 1 . Recyclers Shooed 1 | . 1 . Parts Field Recycled . | . . . Retrieved Matter . | . . . Parts Self-Destructed 6 | . . 6 Prevented . | . . . Kills | -11 -10 -10 ------- Run | Yrd Mat Sub Combat Hostiles Destroyed 24 | . 13 11 Guns 24 | . 13 11 Classes Destroyed 9 | . 5 4 Hauler 1 | . 1 . Recycler 2 | . 2 . Turret 2 | . . 2 Watcher 1 | . 1 . Swarmer 7 | . 3 4 Grunt 10 | . 10 . Sentry 1 | . . 1 Artisan 1 | . . 1 Subdweller 6 | . . 6 Best Kill Streak 4 | . 3 4 Combat Bots Only 4 | . 3 4 Max Kills in Single Turn 1 | . 1 1 Gunslinging . | . . . Exploded . | . . . Melee . | . . . Uniques/NPCs Destroyed . | . . . Combat | -11 -10 -10 -------- Run | Yrd Mat Sub Hostile Shots Fired 217 | . 66 151 Missed 62 | . 21 41 Hits 155 | . 45 110 Projectile 155 | . 45 110 Damage Taken 1800 | . 538 1262 Core 257 | . 42 215 Absorbed by Shields . | . . . Redirected to Shielding 20 | . 8 12 Core Remaining (%) 100 | 100 . . Volleys Fired 120 | . 58 62 Largest 2 | . 2 2 Hottest 56 | . 43 56 Shots Fired 232 | . 116 116 Gun 216 | . 116 100 Cannon 16 | . . 16 Launcher . | . . . Special . | . . . Kinetic 232 | . 116 116 Thermal . | . . . Explosive . | . . . Electromagnetic . | . . . Robot Hit Streak 17 | . 9 17 Robot Miss Streak 4 | . 4 2 Penetration Max . | . . . Secondary Targets 4 | . 1 3 Max Gunslinging Chain 1 | . 1 1 Shots Hit Robots 134 | . 70 64 Core Hits 56 | . 32 24 Critical Kills . | . . . Critical Parts Destroyed 2 | . 2 . Critical Strikes 3 | . 2 1 Destroy 3 | . 2 1 Melee Attacks 29 | . . 29 Impact . | . . . Slashing 29 | . . 29 Piercing . | . . . Sneak Attacks 2 | . . 2 Combat Hostiles . | . . . Follow-up Attacks . | . . . Damage Inflicted 2015 | . 938 1077 Guns 1940 | . 938 1002 Cannons . | . . . Explosions . | . . . Melee 75 | . . 75 Ramming . | . . . Kinetic 1940 | . 938 1002 Thermal . | . . . Explosive . | . . . Electromagnetic . | . . . Impact . | . . . Slashing 75 | . . 75 Piercing . | . . . Highest Corruption 1 | . 1 1 Average Corruption 1 | . 1 1 Corruption Purged . | . . . Corruption Blocked . | . . . Effects 36 | . . 36 Message Errors 8 | . . 8 Matter Fused 8 | . . 8 Heat Flow Errors 2 | . . 2 Energy Discharges 7 | . . 7 Data Loss (minor) 6 | . . 6 Data Loss (major) 3 | . . 3 Misfires 2 | . . 2 Overload Shots . | . . . Overflow Damage 35 | . . 35 Projectiles . | . . . Explosions . | . . . Melee 35 | . . 35 Knockbacks . | . . . Impact . | . . . Kinetic . | . . . Secondary . | . . . Self-Inflicted Damage . | . . . Shots . | . . . Rammed . | . . . Targets Rammed . | . . . Kicked . | . . . Crushed . | . . . Highest Temperature 262 | . 10 262 Average Temperature 58 | . 4 105 Received Heat Transfer 777 | . 252 525 Siege Activations . | . . . Martial Activations . | . . . Shielding Activations . | . . . Robots Disrupted . | . . . Combat Hostiles . | . . . Robots Corrupted . | . . . Combat Hostiles . | . . . Parts Fried . | . . . Impact Corruptions . | . . . Robots Melted . | . . . Combat Hostiles . | . . . Parts Melted . | . . . Heat Transferred . | . . . Parts Sabotaged . | . . . Parts Stolen . | . . . Parts Stripped . | . . . Power Chain Reactions . | . . . Alert | -11 -10 -10 ------- Run | Yrd Mat Sub Maximum Alert Level . | . . . Low Security (%) 100 | 100 100 . Level 1 . | . . . Level 2 . | . . . Level 3 . | . . . Level 4 . | . . . Level 5 . | . . . High Security . | . . . Max Security . | . . . Peak Influence 126 | . 126 . Initial . | . . . Average 46 | . 48 . Influence Increases 680 | . 480 200 Destroy 0b10 Robot/C 400 | . 260 140 Destroy 0b10 Robot/NC 25 | . 25 . Destroy Leader 54 | . 54 . Successful Hack 34 | . 34 . Select Force Hacks 30 | . 30 . Disable Machine 30 | . 30 . Destroy Structure 2 | . 2 . Lose Combat Pursuer 105 | . 45 60 Influence Decreases 574 | . 374 200 Entered New Map 52 | . . 52 Time Decay 482 | . 374 108 Lost Part 40 | . . 40 Squads Dispatched 1 | . 1 . Investigation 1 | . 1 . Extermination . | . . . Reinforcement . | . . . Assault . | . . . Garrison . | . . . Intercept . | . . . Searches Triggered . | . . . Construction Impeded . | . . . Haulers Reinforced . | . . . Active Scanning Responses . | . . . Cargo Convoy Interrupts . | . . . Stealth | -11 -10 -10 --------- Run | Yrd Mat Sub Distress Signals 1 | . 1 . Communications Jammed . | . . . Distress Signals . | . . . Times Spotted 44 | . 24 20 Peak Tracking Total 6 | . 4 6 Tactical Retreats 6 | . 3 3 Traps | -11 -10 -10 ------- Run | Yrd Mat Sub Traps Triggered 2 | . 1 1 Indirectly . | . . . Trap Hack Attempts . | . . . Triggered . | . . . Disarmed . | . . . Reprogrammed . | . . . Reused . | . . . Traps Extracted . | . . . Installed . | . . . Triggered . | . . . Most Traps Carried 1 | . . 1 Machines | -11 -10 -10 ---------- Run | Yrd Mat Sub Machines Disabled 3 | . 2 1 Max in Single Turn 1 | . 1 1 Machines Repaired . | . . . Machines Dismantled . | . . . Machines Sabotaged . | . . . Overloaded Fab Kills . | . . . Hacking | -11 -10 -10 --------- Run | Yrd Mat Sub Machines Accessed 8 | . 8 . Terminals 6 | . 6 . Fabricators . | . . . Repair Stations 1 | . 1 . Recycling Units 1 | . 1 . Scanalyzers . | . . . Garrison Access . | . . . Total Hacks 13 | . 13 . Successful 7 | . 7 . Failed 6 | . 6 . Catastrophic 2 | . 2 . Database Lockouts . | . . . Manual 10 | . 10 . Terminals 8 | . 8 . Fabricators . | . . . Repair Stations 3 | . 3 . Recycling Units 2 | . 2 . Scanalyzers . | . . . Garrison Access . | . . . Terminal Hacks 5 | . 5 . Robot Analysis 2 | . 2 . Branch Access Points 1 | . 1 . Locate Traps 1 | . 1 . Zone Layout 1 | . 1 . Fabricator Hacks . | . . . Repair Station Hacks 1 | . 1 . Scan Component 1 | . 1 . Recycling Unit Hacks . | . . . Scanalyzer . | . . . Garrison Access Hacks . | . . . Unauthorized Hacks 1 | . 1 . Terminals . | . . . Fabricators . | . . . Repair Stations . | . . . Recycling Units 1 | . 1 . Tunnel 1 | . 1 . Scanalyzers . | . . . Garrison Access . | . . . Data Cores Recovered . | . . . Used . | . . . Hacking Detections 6 | . 6 . Full Trace Events . | . . . Feedback Events . | . . . Feedback Blocked . | . . . Robot Schematics Acquired . | . . . Robots Built . | . . . Authchips . | . . . Time . | . . . Total Robot Build Rating . | . . . Part Schematics Acquired . | . . . Parts Built . | . . . Authchips . | . . . Time . | . . . Total Part Build Rating . | . . . Parts Repaired . | . . . Time . | . . . Parts Recycled . | . . . Recycled Matter . | . . . Retrieved Matter . | . . . Retrieved Components . | . . . Parts Scanalyzed . | . . . Part Schematics Acquired . | . . . Parts Damaged . | . . . Bothacking | -11 -10 -10 ------------ Run | Yrd Mat Sub Used RIF Installer . | . . . Robots Hacked . | . . . Non-combat . | . . . Combat . | . . . Robot Hacks Applied . | . . . Relay Couplers Released . | . . . Fabnet Peak Effective % . | . . . Robots Rewired . | . . . Allies Hacked . | . . . Hacks Repelled . | . . . Allies | -11 -10 -10 -------- Run | Yrd Mat Sub Total Allies . | . . . Largest Group . | . . . Highest-Rated Group . | . . . Highest-Rated Ally . | . . . Total Orders . | . . . Ally Attacks . | . . . Total Damage . | . . . Kills . | . . . Allies Corrupted . | . . . Allies Melted . | . . . Intel | -11 -10 -10 ------- Run | Yrd Mat Sub Active Infowar (turns) 636 | . . 636 Optics 636 | . . 636 Robot Analysis Total 2 | . 2 . Derelict Logs Recovered . | . . . Drone Launches . | . . . Drone Recoveries . | . . . Exploration | -11 -10 -10 ------------- Run | Yrd Mat Sub Turns Passed 4963 | 48 1562 3353 Spaces Moved 2487 | 34 782 1671 Core 20 | 19 . 1 Treads 2467 | 15 782 1670 Legs . | . . . Wheels . | . . . Hover . | . . . Flight . | . . . Fastest Speed 50 | 50 160 160 Average Speed 165 | 107 160 169 Slowest Speed 450 | 160 160 450 Overloaded Moves . | . . . Propulsion Burnouts . | . . . Robots Hopped . | . . . Potential Cave-ins . | . . . Cave-ins Triggered . | . . . Exploration Rate (%) 61 | 2 98 83 Regions Visited 2 Branch Regions 1 Pre-discovered Areas 1 | . 1 . Known Exits Taken . | . . . Unknown Exits Taken 2 | 1 1 . Scrap Searched 2 | . . 2 Spaces Dug 5 | . . 5 Terrain Destroyed 5 | . . 5 Melee 5 | . . 5 Projectile . | . . . AOE . | . . . Terrain Rammed . | . . . Walls Destroyed . | . . . Machines Disabled . | . . . Actions | -11 -10 -10 --------- Run | Yrd Mat Sub Total 3076 | 45 982 2049 Wait 346 | . 94 252 Move 2485 | 33 781 1671 Hop . | . . . Pick Up 37 | 6 25 6 Fast Attach 4 | 2 . 2 Attach 11 | 4 1 6 Detach . | . . . Swap 22 | . 9 13 Drop 22 | . 14 8 Fire 120 | . 58 62 Melee 29 | . . 29 Ram . | . . . Kick . | . . . Crush . | . . . Escape Stasis . | . . . Rewire . | . . . Trap . | . . . Miscellaneous . | . . . Route ------- -11/Scrapyard -10/Materials (discovered 6 exits: [*Mat x3] / *Min x2 / [*Sub]) -10/Subcaves (discovered 3 exits: [*Mat x2] / [*Rec]) History --------- Turn | Location | Event 10 | -11/Scrapyard | Discovered new exit (range 16) 49 | -11/Scrapyard | Entered Materials 112 | -10/Materials | Discovered new exit (range 15) 310 | -10/Materials | Build established: Mutant 542 | -10/Materials | Discovered new exit (range 6) 576 | -10/Materials | Identified exit to Mines 1002 | -10/Materials | Discovered new exit (range 5) 1215 | -10/Materials | Discovered new exit (range 9) 1600 | -10/Materials | Discovered new exit (range 7) 1611 | -10/Materials | Entered Subcaves 1612 | -10/Subcaves | Approached by a straggling Scientist 1885 | -10/Subcaves | Discovered new exit (range 14) 2148 | -10/Subcaves | Shifting Twisted Machinery released Sub. Optics 2235 | -10/Subcaves | Shifting Twisted Machinery released Mak. Sword 2236 | -10/Subcaves | Shifting Twisted Machinery released Battle Cannon 2565 | -10/Subcaves | A swath of the cavern ceiling suddenly collapsed 2788 | -10/Subcaves | Discovered new exit (range 6) 2831 | -10/Subcaves | Shifting Twisted Machinery released Barrage Gun 3682 | -10/Subcaves | Core integrity fell below 50% 4173 | -10/Subcaves | Shifting Twisted Machinery released Mak. Light Armor Plating 4343 | -10/Subcaves | Discovered new exit (range 11) 4402 | -10/Subcaves | Core integrity fell below 20% 4410 | -10/Subcaves | Lost 3 parts (1p2n) 4955 | -10/Subcaves | Ambushed by angry Subdweller bent on revenge 4964 | -10/Subcaves | Destroyed by PK-0ZS(R) with Subdweller Beam Cannon Last Messages --------------- System corrupted: Substantial component data lost. 2A-IRQ(u) builds Twisted Machinery. 3T>VRART,E K9N 5IWK6 2A-IRQ(u) builds Twisted Machinery. Sneak attack on 2A-IRQ(u). System corrupted: Matter fused (-5). CK-EW9(u) tweaks Twisted Machinery. CK-EW9(u) builds Twisted Machinery. CK-EW9(u) tweaks Twisted Machinery. CK-EW9(u) builds Twisted Machinery. Sneak attack on CK-EW9(u). Destroyed Wheel. CK-EW9(u) cries out in pain. CK-EW9(u) destroyed. Acquired 19 matter. PK-0ZS(R) angrily emerges from the Twisted Machinery. PK-0ZS(R): "MADSUB!" Barrage Gun destroyed. Map ----- +----------------------------------------------------+ | | | | | | | | | | | | | ?????????????????????????????????????????????????? | | ?????????????????????????????????????????????????? | | ?????????????????????????????????????????????????? | | ?????????????????????????????????????????????????? | | ?????????????????????????????????????????????????? | | ?????????????????????????????????????????????????? | | ?????????????????????????????????????????????????? | | ?????????????????????????????????????????????????? | | ?????????????????????????????????????????????????? | | ?????????????????????????????????????????????????? | | ?????????????????????????????????????????????????? | | ?????????????????????????????????????????????????? | | ?????????????????????????????????????????????????? | | ?????????????????????????????????????????????????? | | ?????????????????????###?????????????????????????? | | ???????????????##???## #########?????????????????# | | ??????????????##"##?#""" #?########????????# | | ??????????????#"""#?#""""""" #?# ##???????? | | ??????????????# "###"" """ "###?# ###?????? | | ???????????????# #?#""R@ "#????# ####### | | ?????????????#### ###" ### ##????# # # | | ?????????????# """""#####?????# | | ????????????## """ #???????# ## ## | | ????????????# " " ##???????# ######## | | ????????????##" "" #######??# ##??????# | | ?????????????##### """""### ## #### ##???????# | | ????####????????# """"##?# #??????### | | ???## ####?????# """"##?#""" ##?????## | | ???# # #????##"""""""### ## # #??????# | | ???# ##???#"" " ## ### #??????## | | ??## #?### " ### #####?????# | | ??# ### " ####?# ## ##???## | | ??# "######?#### #???#! | | ???# """"# ## ## #### # #???# | | ???## """""" """## # ##???## | | ????## " """"""< #????# | | ?????# ### # ##"### ##" # #????#" | | ?????# ## ####?#####?##???## #### ##???#"# | | ?????# ######??????????????## ### ######## | | ?????# #??????????????????#[" "" ### ""##??? | | ?????# #????????????????### "## #?# """#### | | ?????# ##????????????????# #######?# | | ?????## #????????????????# ##???????### "" | | ??????# ##????????????????####??????????##### """ | +----------------------------------------------------+ Best States ------------- Heat Dissipation 25 Energy Generation 14 Energy Capacity 250 Matter Stores 300 Matter Capacity 300 Sight Range 21 Terrain Scan Density 10 Core Shielding 20 Evasion (%) 50 Targeting Accuracy 5 Recoil Reduction 2 Item Schematics ----------------- None Robot Schematics ------------------ None Fabricated ------------ Nothing Repaired ---------- Nothing Alien Tech Used ----------------- None Achievements -------------- None Challenges ------------ None Game ------ Seed SubatomicGaussAutogun Manual? 0 Play Time 00:27:08 Cumulative 64.2 hours Start 2025.06.11 @ 04:47:46 End 2025.06.11 @ 05:14:31 Sessions 1 Manual Loads 0 Difficulty Rogue Special Mode None Game No. 60 Rogue 60 Adventurer 0 Explorer 0 Win Type - Total 1 Types 1/0/0/0/0/0/0/0/0/0 Lore% 45 Gallery% 45 Achievement% 43 Wizard Run 0 Options --------- Layout 1 ASCII 0 Keyboard 0 Movement Mouse Keybinds 0 Fullscreen 2 Font 24/Smallcaps Map View 50x35 Zoom Use 0% Tactical HUD 0 Map Filters NONE Filters NONE Steam 1 RUN: 9e7bfcf9-ec8c-4782-9d5b-bc47adf665fb